fUST/lending_fUST_20260115
["ID","MTS","AMOUNT","RATE_DAILY","PERIOD"]
[402031471,1768487480584,-500.0,0.00022465,2]
[402031472,1768487480593,-500.0,0.00022465,2]
[402031473,1768487480602,-500.0,0.00022465,2]
[402031474,1768487480611,-500.0,0.00022465,2]
[402031475,1768487480620,-500.0,0.00022465,2]
[402031476,1768487480629,-500.0,0.00022465,2]
[402031477,1768487480638,-693.06,0.00022465,2]
[402031478,1768487480647,-870.35,0.00022465,2]
[402031479,1768487480657,-500.0,0.00022465,2]
[402031480,1768487480666,-3191.7,0.00022465,2]
[402031481,1768487480675,-1884.45,0.00022465,2]
[402031482,1768487480685,-2167.96,0.00022465,2]
[402031483,1768487480695,-1070.45,0.00022465,2]
[402031484,1768487480704,-500.0,0.00022465,2]
[402031485,1768487480715,-664.31,0.00022465,2]
[402031486,1768487480724,-500.0,0.00022465,2]
[402031487,1768487480734,-500.0,0.00022465,2]
[402031488,1768487480744,-500.0,0.00022465,2]
[402031489,1768487480755,-500.0,0.00022465,2]
[402031490,1768487480764,-500.0,0.00022465,2]
[402031491,1768487480774,-546.48,0.00022465,2]
[402031492,1768487480784,-500.0,0.00022465,2]
[402031493,1768487480794,-500.0,0.00022465,2]
[402031494,1768487480803,-896.85,0.00022465,2]
[402031495,1768487480812,-1593.41,0.00022465,2]
[402031496,1768487480824,-627.87,0.00022465,2]
[402031497,1768487480833,-1091.96,0.00022465,2]
[402031498,1768487480843,-822.22,0.00022465,2]
[402031499,1768487480852,-2024.6,0.00022465,2]
[402031500,1768487480862,-201.99990382,0.00022465,2]
[402031501,1768487480871,-500.0,0.00022465,2]
[402031502,1768487480880,-500.0,0.00022465,2]
[402031503,1768487480890,-500.0,0.00022465,2]
[402031504,1768487480900,-500.0,0.00022465,2]
[402031505,1768487480909,-500.0,0.00022466,5]
[402031506,1768487480918,-300.0,0.00022466,2]
[402031507,1768487480928,-200.0,0.00022466,2]
[402031508,1768487480939,-254.22917505,0.00022466,2]
[402031509,1768487480948,-944.88063217,0.00022472,50]
[402031510,1768487480958,-728.0,0.0002248,2]
[402031511,1768487480967,-700.0,0.00022484,2]
[402031512,1768487480976,-163.0,0.000225,9]
[402031513,1768487480985,-2049.66,0.000225,7]
[402031514,1768487480995,-2000.0,0.000225,7]
[402031515,1768487481005,-1285.00404337,0.00022518,31]
[402031516,1768487481014,-944.88063217,0.00022535,54]
[402031517,1768487481023,-160.62550542,0.00022536,32]
[402031518,1768487481032,-500.0,0.0002254,2]
[402031519,1768487481042,-1700.0,0.00022558,2]
[402031520,1768487481052,-324.71700195,0.00022562,48]
[402031521,1768487481062,-188.36602007,0.00022566,56]
[402031522,1768487481072,-333.33333333,0.00022566,56]
[402031523,1768487481082,-1285.00404337,0.00022582,35]
[402031524,1768487481092,-532.6,0.00022587,2]
[402031525,1768487481101,-944.88063217,0.00022598,57]
[402031526,1768487481111,-728.0,0.0002264,3]
[402031527,1768487481120,-11393.70973625,0.0002264,2]
[402031528,1768487481130,-1700.0,0.00022643,2]
[402031529,1768487481140,-1285.00404337,0.00022646,39]
[402031530,1768487481149,-160.0,0.00022648,3]
[402031531,1768487481159,-1700.0,0.00022653,2]
[402031532,1768487481169,-944.88063217,0.0002266,61]
[402031533,1768487481178,-333.33333333,0.00022696,63]
[402031534,1768487481187,-300996.63599317,0.00022699,2]
[402031535,1768487481750,-151.0,0.00013699,2]
[402031536,1768487481759,-500.0,0.00022465,2]
[402031537,1768487481768,-46517.30850508,0.00022699,2]
[402031538,1768487481777,-1369.39,0.000227,3]
[402031539,1768487481787,-1285.00404337,0.0002271,42]
[402031540,1768487481796,-159.14664076,0.0002272,48]
[402031541,1768487481805,-944.88063217,0.00022723,65]
[402031542,1768487481814,-728.0,0.00022727,3]
[402031543,1768487481824,-728.0,0.00022727,3]
[402031544,1768487481833,-1099.53432746,0.00022739,2]
[402031545,1768487481843,-500.0,0.00022739,2]
[402031546,1768487481852,-500.0,0.00022739,2]
[402031547,1768487481862,-500.0,0.00022739,2]
[402031548,1768487481871,-500.0,0.00022739,2]
[402031549,1768487481881,-500.0,0.00022739,2]
[402031550,1768487481890,-500.0,0.00022739,2]
[402031551,1768487481902,-500.0,0.00022739,2]
[402031552,1768487481912,-500.0,0.00022739,2]
[402031553,1768487481921,-500.0,0.00022739,2]
[402031554,1768487481931,-500.0,0.00022739,2]
[402031555,1768487481940,-500.0,0.00022739,2]
[402031556,1768487481949,-1002.9,0.00022739,2]
[402031557,1768487481958,-500.0,0.00022739,2]
[402031558,1768487481967,-936.58,0.00022739,2]
[402031559,1768487481977,-500.0,0.00022739,2]
[402031560,1768487481986,-500.0,0.00022739,2]
[402031561,1768487481995,-500.0,0.00022739,2]
[402031562,1768487482004,-500.0,0.00022739,2]
[402031563,1768487482013,-500.0,0.00022739,2]
[402031564,1768487482022,-1770.85,0.00022739,2]
[402031565,1768487482031,-879.33,0.00022739,2]
[402031566,1768487482040,-978.59,0.00022739,2]
[402031567,1768487482050,-872.67,0.00022739,2]
[402031568,1768487482059,-586.6276719,0.00022739,2]
[402031569,1768487482070,-500.0,0.00022739,2]
[402031570,1768487482080,-500.0,0.00022739,2]
[402031571,1768487482089,-593.36,0.00022739,2]
[402031572,1768487482098,-546.67,0.00022739,2]
[402031573,1768487482107,-1281.78,0.00022739,2]
[402031574,1768487482116,-1246.71,0.00022739,2]
[402031575,1768487482125,-500.0,0.00022739,2]
[402031576,1768487482135,-500.0,0.00022739,2]
[402031577,1768487482145,-1341.56,0.00022739,2]
[402031578,1768487482154,-500.0,0.00022739,2]
[402031579,1768487482163,-256.0612909,0.00022739,2]
[402031580,1768487482172,-521.17,0.00022739,2]
[402031581,1768487482182,-500.0,0.00022739,2]
[402031582,1768487482192,-500.0,0.00022739,2]
[402031583,1768487482202,-500.0,0.00022739,2]
[402031584,1768487482211,-500.0,0.00022739,2]
[402031585,1768487482222,-500.0,0.00022739,2]
[402031586,1768487482231,-644.29,0.00022739,2]
[402031587,1768487482241,-500.0,0.00022739,2]
[402031588,1768487482254,-506.33,0.00022739,2]
[402031589,1768487482263,-500.0,0.00022739,2]
[402031590,1768487482274,-594.26,0.00022739,2]
[402031591,1768487482285,-500.0,0.00022739,2]
[402031592,1768487482295,-500.0,0.00022739,2]
[402031593,1768487482305,-500.0,0.00022739,2]
[402031594,1768487482314,-158.25136016,0.00022739,2]
[402031595,1768487482326,-459.60394602,0.00022739,2]
[402031596,1768487482336,-554.13,0.00022739,2]
[402031597,1768487482345,-500.0,0.00022739,2]
[402031598,1768487482355,-500.0,0.00022739,2]
[402031599,1768487482364,-500.0,0.00022739,2]
[402031600,1768487482373,-500.0,0.00022739,2]
[402031601,1768487482382,-1255.49,0.00022739,2]
[402031602,1768487482391,-500.0,0.00022739,2]
[402031603,1768487482402,-1529.94,0.00022739,2]
[402031604,1768487482411,-926.97,0.00022739,2]
[402031605,1768487482420,-500.0,0.00022739,2]
[402031606,1768487482429,-500.0,0.00022739,2]
[402031607,1768487482439,-615.75,0.00022739,2]
[402031608,1768487482448,-634.09,0.00022739,2]
[402031609,1768487482457,-533.67,0.00022739,2]
[402031610,1768487482467,-1081.71,0.00022739,2]
[402031611,1768487482476,-1130.5,0.00022739,2]
[402031612,1768487482486,-988.89,0.00022739,2]
[402031613,1768487482496,-524.77564492,0.00022739,2]
[402031614,1768487482504,-686.99,0.00022739,2]
[402031615,1768487482514,-500.0,0.00022739,2]
[402031616,1768487482524,-500.0,0.00022739,2]
[402031617,1768487482533,-500.0,0.00022739,2]
[402031618,1768487482543,-500.0,0.00022739,2]
[402031619,1768487482553,-903.94,0.00022739,2]
[402031620,1768487482562,-521.92,0.00022739,2]
[402031621,1768487482573,-532.0,0.00022739,2]
[402031622,1768487482582,-500.0,0.00022739,2]
[402031623,1768487482591,-500.0,0.00022739,2]
[402031624,1768487482600,-500.0,0.00022739,2]
[402031625,1768487482609,-500.0,0.00022739,2]
[402031626,1768487482618,-1217.96,0.00022739,2]
[402031627,1768487482628,-500.0,0.00022739,2]
[402031628,1768487482637,-500.0,0.00022739,2]
[402031629,1768487482647,-1113.99,0.00022739,2]
[402031630,1768487482658,-500.0,0.00022739,2]
[402031631,1768487482667,-1109.33,0.00022739,2]
[402031632,1768487482676,-500.0,0.00022739,2]
[402031633,1768487482685,-1615.4,0.00022739,2]
[402031634,1768487482696,-500.0,0.00022739,2]
[402031635,1768487482707,-580.91,0.00022739,2]
[402031636,1768487482718,-500.0,0.00022739,2]
[402031637,1768487482727,-583.99,0.00022739,2]
[402031638,1768487482738,-635.73,0.00022739,2]
[402031639,1768487482747,-500.0,0.00022739,2]
[402031640,1768487482758,-803.86,0.00022739,2]
[402031641,1768487482768,-551.6,0.00022739,2]
[402031642,1768487482777,-915.52,0.00022739,2]
[402031643,1768487482786,-500.0,0.00022739,2]
[402031644,1768487482795,-1913.88,0.00022739,2]
[402031645,1768487482807,-500.0,0.00022739,2]
[402031646,1768487482816,-403.54989428,0.00022739,2]
[402031647,1768487482825,-500.0,0.00022739,2]
[402031648,1768487482834,-500.0,0.00022739,2]
[402031649,1768487482843,-500.0,0.00022739,2]
[402031650,1768487482855,-500.0,0.00022739,2]
[402031651,1768487482875,-500.0,0.00022739,2]
[402031652,1768487482893,-500.0,0.00022739,2]
[402031653,1768487482905,-500.0,0.00022739,2]
[402031654,1768487482926,-1112.62,0.00022739,2]
[402031655,1768487482946,-500.0,0.00022739,2]
[402031656,1768487482968,-500.0,0.00022739,2]
[402031657,1768487482980,-500.0,0.00022739,2]
[402031658,1768487482991,-1872.85,0.00022739,2]
[402031659,1768487483002,-500.0,0.00022739,2]
[402031660,1768487483012,-1027.2,0.00022739,2]
[402031661,1768487483025,-592.05,0.00022739,2]
[402031662,1768487483035,-500.0,0.00022739,2]
[402031663,1768487483047,-500.0,0.00022739,2]
[402031664,1768487483062,-841.23,0.00022739,2]
[402031665,1768487483075,-500.0,0.00022739,2]
[402031666,1768487483086,-500.0,0.00022739,2]
[402031667,1768487483097,-1034.73,0.00022739,2]
[402031668,1768487483110,-500.0,0.00022739,2]
[402031669,1768487483119,-500.0,0.00022739,2]
[402031670,1768487483129,-500.0,0.00022739,2]
[402031671,1768487483140,-522.94,0.00022739,2]
[402031672,1768487483150,-660.52,0.00022739,2]
[402031673,1768487483160,-510.6,0.00022739,2]
[402031674,1768487483171,-500.0,0.00022739,2]
[402031675,1768487483180,-500.0,0.00022739,2]
[402031676,1768487483190,-500.0,0.00022739,2]
[402031677,1768487483200,-766.8,0.00022739,2]
[402031678,1768487483210,-500.0,0.00022739,2]
[402031679,1768487483221,-648.96,0.00022739,2]
[402031680,1768487483232,-500.0,0.00022739,2]
[402031681,1768487483247,-500.0,0.00022739,2]
[402031682,1768487483258,-547.35565446,0.00022739,2]
[402031683,1768487483269,-666.47,0.00022739,2]
[402031684,1768487483280,-500.0,0.00022739,2]
[402031685,1768487483291,-627.91,0.00022739,2]
[402031686,1768487483301,-500.0,0.00022739,2]
[402031687,1768487483312,-500.0,0.00022739,2]
[402031688,1768487483324,-500.0,0.00022739,2]
[402031689,1768487483336,-1765.87,0.00022739,2]
[402031690,1768487483347,-500.0,0.00022739,2]
[402031691,1768487483357,-965.72,0.00022739,2]
[402031692,1768487483367,-1465.07,0.00022739,2]
[402031693,1768487483377,-500.0,0.00022739,2]
[402031694,1768487483386,-500.0,0.00022739,2]
[402031695,1768487483395,-500.0,0.00022739,2]
[402031696,1768487483405,-500.0,0.00022739,2]
[402031697,1768487483414,-1130.92,0.00022739,2]
[402031698,1768487483424,-500.0,0.00022739,2]
[402031699,1768487483433,-526.5,0.00022739,2]
[402031700,1768487483442,-500.0,0.00022739,2]
[402031701,1768487483452,-1697.5,0.00022739,2]
[402031702,1768487483461,-526.35,0.00022739,2]
[402031703,1768487483471,-500.0,0.00022739,2]
[402031704,1768487483480,-500.0,0.00022739,2]
[402031705,1768487483489,-500.0,0.00022739,2]
[402031706,1768487483499,-2715.18,0.00022739,2]
[402031707,1768487483508,-840.57,0.00022739,2]
[402031708,1768487483518,-726.12,0.00022739,2]
[402031709,1768487483527,-500.0,0.00022739,2]
[402031710,1768487483536,-500.0,0.00022739,2]
[402031711,1768487483545,-500.0,0.00022739,2]
[402031712,1768487483554,-1772.2,0.00022739,2]
[402031713,1768487483563,-500.0,0.00022739,2]
[402031714,1768487483574,-500.0,0.00022739,2]
[402031715,1768487483583,-517.8,0.00022739,2]
[402031716,1768487483592,-292.66726219,0.00022739,2]
[402031717,1768487483602,-500.0,0.00022739,2]
[402031718,1768487483611,-500.0,0.00022739,2]
[402031719,1768487483621,-500.0,0.00022739,2]
[402031720,1768487483630,-1786.4,0.00022739,2]
[402031721,1768487483639,-589.94,0.00022739,2]
[402031722,1768487483648,-500.0,0.00022739,2]
[402031723,1768487483657,-854.81,0.00022739,2]
[402031724,1768487483667,-500.0,0.00022739,2]
[402031725,1768487483676,-584.09103073,0.00022739,2]
[402031726,1768487483686,-500.0,0.00022739,2]
[402031727,1768487483695,-500.0,0.00022739,2]
[402031728,1768487483705,-782.57,0.00022739,2]
[402031729,1768487483715,-500.0,0.00022739,2]
[402031730,1768487483724,-500.0,0.00022739,2]
[402031731,1768487483734,-661.81,0.00022739,2]
[402031732,1768487483743,-937.88,0.00022739,2]
[402031733,1768487483752,-725.64,0.00022739,2]
[402031734,1768487483761,-1083.22,0.00022739,2]
[402031735,1768487483771,-500.0,0.00022739,2]
[402031736,1768487483780,-1394.53,0.00022739,2]
[402031737,1768487483790,-2723.97,0.00022739,2]
[402031738,1768487483799,-881.61,0.00022739,2]
[402031739,1768487483809,-1470.16,0.00022739,2]
[402031740,1768487483818,-500.0,0.00022739,2]
[402031741,1768487483834,-652.0,0.00022739,2]
[402031742,1768487483850,-500.0,0.00022739,2]
[402031743,1768487483859,-500.0,0.00022739,2]
[402031744,1768487483870,-602.56,0.00022739,2]
[402031745,1768487483880,-1073.72,0.00022739,2]
[402031746,1768487483891,-670.48,0.00022739,2]
[402031747,1768487483902,-1114.63,0.00022739,2]
[402031748,1768487483914,-795.08,0.00022739,2]
[402031749,1768487483924,-1353.51,0.00022739,2]
[402031750,1768487483933,-500.0,0.00022739,2]
[402031751,1768487483945,-1093.41,0.00022739,2]
[402031752,1768487483956,-500.0,0.00022739,2]
[402031753,1768487483966,-500.0,0.00022739,2]
[402031754,1768487483976,-500.0,0.00022739,2]
[402031755,1768487483986,-500.0,0.00022739,2]
[402031756,1768487483997,-733.66,0.00022739,2]
[402031757,1768487484006,-592.35,0.00022739,2]
[402031758,1768487484015,-725.46,0.00022739,2]
[402031759,1768487484025,-3008.55,0.00022739,2]
[402031760,1768487484034,-500.0,0.00022739,2]
[402031761,1768487484044,-586.6,0.00022739,2]
[402031762,1768487484054,-500.0,0.00022739,2]
[402031763,1768487484064,-1323.38,0.00022739,2]
[402031764,1768487484074,-472.10436544,0.00022739,2]
[402031765,1768487484084,-500.0,0.00022739,2]
[402031766,1768487484093,-1210.62,0.00022739,2]
[402031767,1768487484103,-500.0,0.00022739,2]
[402031768,1768487484112,-237.68228898,0.00022739,2]
[402031769,1768487484122,-284.2016277,0.00022739,2]
[402031770,1768487484131,-500.0,0.00022739,2]
[402031771,1768487484140,-500.0,0.00022739,2]
[402031772,1768487484150,-750.39,0.00022739,2]
[402031773,1768487484373,-500.0,0.00022739,2]
[402031774,1768487484383,-500.0,0.00022739,2]
[402031775,1768487484393,-500.0,0.00022739,2]
[402031776,1768487484402,-500.0,0.00022739,2]
[402031777,1768487484412,-553.23,0.00022739,2]
[402031778,1768487484421,-1482.63,0.00022739,2]
[402031779,1768487484430,-500.0,0.00022739,2]
[402031780,1768487484440,-500.0,0.00022739,2]
[402031781,1768487484449,-536.25,0.00022739,2]
[402031782,1768487484458,-500.0,0.00022739,2]
[402031783,1768487484467,-500.0,0.00022739,2]
[402031784,1768487484477,-756.43,0.00022739,2]
[402031785,1768487484486,-500.0,0.00022739,2]
[402031786,1768487484496,-500.0,0.00022739,2]
[402031787,1768487484506,-500.0,0.00022739,2]
[402031788,1768487484516,-500.0,0.00022739,2]
[402031789,1768487484525,-500.0,0.00022739,2]
[402031790,1768487484535,-1685.75,0.00022739,2]
[402031791,1768487484543,-500.0,0.00022739,2]
[402031792,1768487484553,-314.061155,0.00022739,2]
[402031793,1768487484563,-500.0,0.00022739,2]
[402031794,1768487484573,-2008.87,0.00022739,2]
[402031795,1768487484582,-500.0,0.00022739,2]
[402031796,1768487484591,-565.59190615,0.00022739,2]
[402031797,1768487484600,-500.0,0.00022739,2]
[402031798,1768487484610,-500.0,0.00022739,2]
[402031799,1768487484619,-500.0,0.00022739,2]
[402031800,1768487484629,-1116.83,0.00022739,2]
[402031801,1768487484638,-1086.09,0.00022739,2]
[402031802,1768487484647,-1803.33,0.00022739,2]
[402031803,1768487484657,-702.6,0.00022739,2]
[402031804,1768487484666,-823.85,0.00022739,2]
[402031805,1768487484677,-500.0,0.00022739,2]
[402031806,1768487484687,-500.0,0.00022739,2]
[402031807,1768487484696,-500.0,0.00022739,2]
[402031808,1768487484706,-500.0,0.00022739,2]
[402031809,1768487484715,-1893.75,0.00022739,2]
[402031810,1768487484724,-500.0,0.00022739,2]
[402031811,1768487484733,-500.0,0.00022739,2]
[402031812,1768487484742,-500.0,0.00022739,2]
[402031813,1768487484751,-1226.97,0.00022739,2]
[402031814,1768487484760,-500.0,0.00022739,2]
[402031815,1768487484769,-500.0,0.00022739,2]
[402031816,1768487484778,-881.98,0.00022739,2]
[402031817,1768487484787,-500.0,0.00022739,2]
[402031818,1768487484797,-526.73,0.00022739,2]
[402031819,1768487484806,-991.82,0.00022739,2]
[402031820,1768487484815,-500.0,0.00022739,2]
[402031821,1768487484827,-500.0,0.00022739,2]
[402031822,1768487484836,-500.0,0.00022739,2]
[402031823,1768487484845,-500.0,0.00022739,2]
[402031824,1768487484855,-1273.1,0.00022739,2]
[402031825,1768487484866,-633.46,0.00022739,2]
[402031826,1768487484877,-1556.57,0.00022739,2]
[402031827,1768487484888,-500.0,0.00022739,2]
[402031828,1768487484897,-1773.57,0.00022739,2]
[402031829,1768487484908,-500.0,0.00022739,2]
[402031830,1768487484918,-2239.48,0.00022739,2]
[402031831,1768487484927,-500.0,0.00022739,2]
[402031832,1768487484936,-500.0,0.00022739,2]
[402031833,1768487484946,-500.0,0.00022739,2]
[402031834,1768487484955,-2169.19,0.00022739,2]
[402031835,1768487484964,-1934.33,0.00022739,2]
[402031836,1768487484974,-500.0,0.00022739,2]
[402031837,1768487484983,-500.0,0.00022739,2]
[402031838,1768487484992,-546.27,0.00022739,2]
[402031839,1768487485002,-500.0,0.00022739,2]
[402031840,1768487485011,-500.0,0.00022739,2]
[402031841,1768487485021,-153.52240923,0.00022739,2]
[402031842,1768487485030,-500.0,0.00022739,2]
[402031843,1768487485040,-500.0,0.00022739,2]
[402031844,1768487485049,-523.94812621,0.00022739,2]
[402031845,1768487485058,-2336.87,0.00022739,2]
[402031846,1768487485068,-929.89,0.00022739,2]
[402031847,1768487485080,-500.0,0.00022739,2]
[402031848,1768487485089,-500.0,0.00022739,2]
[402031849,1768487485099,-500.0,0.00022739,2]
[402031850,1768487485108,-500.0,0.00022739,2]
[402031851,1768487485118,-500.0,0.00022739,2]
[402031852,1768487485128,-500.0,0.00022739,2]
[402031853,1768487485137,-500.0,0.00022739,2]
[402031854,1768487485147,-1009.61,0.00022739,2]
[402031855,1768487485157,-687.14,0.00022739,2]
[402031856,1768487485167,-500.0,0.00022739,2]
[402031857,1768487485177,-773.67,0.00022739,2]
[402031858,1768487485187,-500.0,0.00022739,2]
[402031859,1768487485197,-734.12,0.00022739,2]
[402031860,1768487485207,-513.82,0.00022739,2]
[402031861,1768487485217,-1103.55,0.00022739,2]
[402031862,1768487485227,-1005.25,0.00022739,2]
[402031863,1768487485237,-1116.14,0.00022739,2]
[402031864,1768487485249,-500.0,0.00022739,2]
[402031865,1768487485260,-1999.12,0.00022739,2]
[402031866,1768487485270,-500.0,0.00022739,2]
[402031867,1768487485281,-500.0,0.00022739,2]
[402031868,1768487485290,-500.0,0.00022739,2]
[402031869,1768487485300,-500.0,0.00022739,2]
[402031870,1768487485310,-500.0,0.00022739,2]
[402031871,1768487485320,-1283.41,0.00022739,2]
[402031872,1768487485333,-549.87,0.00022739,2]
[402031873,1768487485343,-500.0,0.00022739,2]
[402031874,1768487485353,-657.58,0.00022739,2]
[402031875,1768487485362,-500.0,0.00022739,2]
[402031876,1768487485371,-500.0,0.00022739,2]
[402031877,1768487485380,-769.55,0.00022739,2]
[402031878,1768487485389,-859.92,0.00022739,2]
[402031879,1768487485399,-1274.55,0.00022739,2]
[402031880,1768487485409,-755.36,0.00022739,2]
[402031881,1768487485418,-548.51,0.00022739,2]
[402031882,1768487485427,-500.0,0.00022739,2]
[402031883,1768487485438,-500.0,0.00022739,2]
[402031884,1768487485449,-500.0,0.00022739,2]
[402031885,1768487485459,-577.77,0.00022739,2]
[402031886,1768487485469,-500.0,0.00022739,2]
[402031887,1768487485480,-1171.54,0.00022739,2]
[402031888,1768487485490,-1735.71,0.00022739,2]
[402031889,1768487485502,-856.53,0.00022739,2]
[402031890,1768487485512,-500.0,0.00022739,2]
[402031891,1768487485522,-500.0,0.00022739,2]
[402031892,1768487485532,-500.0,0.00022739,2]
[402031893,1768487485543,-536.50517922,0.00022739,2]
[402031894,1768487485554,-885.89,0.00022739,2]
[402031895,1768487485566,-500.0,0.00022739,2]
[402031896,1768487485577,-500.0,0.00022739,2]
[402031897,1768487485586,-1566.67,0.00022739,2]
[402031898,1768487485596,-500.0,0.00022739,2]
[402031899,1768487485606,-1875.79,0.00022739,2]
[402031900,1768487485615,-500.0,0.00022739,2]
[402031901,1768487485625,-500.0,0.00022739,2]
[402031902,1768487485635,-500.0,0.00022739,2]
[402031903,1768487485647,-1582.37,0.00022739,2]
[402031904,1768487485656,-641.44,0.00022739,2]
[402031905,1768487485666,-1167.14,0.00022739,2]
[402031906,1768487485676,-717.39,0.00022739,2]
[402031907,1768487485685,-1327.2,0.00022739,2]
[402031908,1768487485695,-550.33,0.00022739,2]
[402031909,1768487485705,-500.0,0.00022739,2]
[402031910,1768487485715,-542.95522853,0.00022739,2]
[402031911,1768487485726,-500.0,0.00022739,2]
[402031912,1768487485735,-536.0,0.00022739,2]
[402031913,1768487485744,-893.0,0.00022739,2]
[402031914,1768487485752,-1093.12,0.00022739,2]
[402031915,1768487485760,-1111.22,0.00022739,2]
[402031916,1768487485769,-500.0,0.00022739,2]
[402031917,1768487485778,-500.0,0.00022739,2]
[402031918,1768487485788,-500.0,0.00022739,2]
[402031919,1768487485797,-500.0,0.00022739,2]
[402031920,1768487485807,-266.44760631,0.00022739,2]
[402031921,1768487485816,-974.62,0.00022739,2]
[402031922,1768487485827,-548.4,0.00022739,2]
[402031923,1768487485837,-1254.11,0.00022739,2]
[402031924,1768487485848,-622.64063856,0.00022739,2]
[402031925,1768487485858,-500.0,0.00022739,2]
[402031926,1768487485868,-588.45,0.00022739,2]
[402031927,1768487485877,-500.0,0.00022739,2]
[402031928,1768487485887,-590.1,0.00022739,2]
[402031929,1768487485896,-500.0,0.00022739,2]
[402031930,1768487485906,-1693.22,0.00022739,2]
[402031931,1768487485915,-821.11,0.00022739,2]
[402031932,1768487485924,-500.0,0.00022739,2]
[402031933,1768487485932,-500.0,0.00022739,2]
[402031934,1768487485942,-1106.41,0.00022739,2]
[402031935,1768487485950,-500.0,0.00022739,2]
[402031936,1768487485962,-500.0,0.00022739,2]
[402031937,1768487485974,-875.29,0.00022739,2]
[402031938,1768487485986,-703.12,0.00022739,2]
[402031939,1768487485997,-500.0,0.00022739,2]
[402031940,1768487486009,-2170.69,0.00022739,2]
[402031941,1768487486019,-500.0,0.00022739,2]
[402031942,1768487486029,-1318.35,0.00022739,2]
[402031943,1768487486040,-1209.18,0.00022739,2]
[402031944,1768487486052,-615.76733166,0.00022739,2]
[402031945,1768487486063,-500.0,0.00022739,2]
[402031946,1768487486076,-548.67,0.00022739,2]
[402031947,1768487486087,-500.0,0.00022739,2]
[402031948,1768487486100,-500.0,0.00022739,2]
[402031949,1768487486111,-629.01,0.00022739,2]
[402031950,1768487486120,-500.0,0.00022739,2]
[402031951,1768487486129,-500.0,0.00022739,2]
[402031952,1768487486140,-500.0,0.00022739,2]
[402031953,1768487486152,-500.0,0.00022739,2]
[402031954,1768487486163,-1139.79,0.00022739,2]
[402031955,1768487486172,-500.0,0.00022739,2]
[402031956,1768487486182,-931.03,0.00022739,2]
[402031957,1768487486192,-500.0,0.00022739,2]
[402031958,1768487486201,-545.8035631,0.00022739,2]
[402031959,1768487486211,-500.0,0.00022739,2]
[402031960,1768487486221,-500.0,0.00022739,2]
[402031961,1768487486230,-500.0,0.00022739,2]
[402031962,1768487486240,-1048.28,0.00022739,2]
[402031963,1768487486253,-2170.59,0.00022739,2]
[402031964,1768487486263,-500.0,0.00022739,2]
[402031965,1768487486273,-500.0,0.00022739,2]
[402031966,1768487486283,-500.0,0.00022739,2]
[402031967,1768487486293,-500.0,0.00022739,2]
[402031968,1768487486303,-637.66379622,0.00022739,2]
[402031969,1768487486312,-500.0,0.00022739,2]
[402031970,1768487486323,-1912.16,0.00022739,2]